Cogmind - Beta 12 --- EXPLORER MODE // 2023.08.13 @ 02:39:31 Player: door Result: Self-destructed Performance ------------- Evolutions (3) 1500 Regions Visited (4) 800 Robots Destroyed (29) 145 Value Destroyed (808) 808 Prototype IDs (0) 0 Alien Tech Used (0) 0 Bonus (0) 0 TOTAL SCORE: 3253 Bonus ------- None Cogmind --------- Core Integrity 503/700 Matter 270/300 Energy 161/250 System Corruption 6% Temperature Cool (9) Movement Treading (160) Location -7/Factory Parts ------- > --- POWER (2) -------- Ion Engine > --- PROPULSION (5) --- Light Treads Light Treads > --- UTILITY (3) ------ Improved Heat Sink Large Storage Unit > --- WEAPON (4) ------- (None) > --- INVENTORY (15) --- Ion Engine Light Nuclear Core Improved Heat Sink Light Armor Plating Peak State ------------ > --- POWER ------------ Ion Engine Light Nuclear Core > --- PROPULSION ------- Aluminum Leg Aluminum Leg Aluminum Leg Aluminum Leg Carbon-fiber Leg > --- UTILITY ---------- Improved Heat Sink Improved Cooling System Large Storage Unit > --- WEAPON ----------- Particle Gun Field Laser Plasma Cutter Plasma Cutter > --- INVENTORY -------- Ion Engine Ion Engine Light Ion Engine Light Nuclear Core Light Treads Light Treads Improved Heat Sink Light Armor Plating [Rating: 29] Favorites ----------- Power Ion Engine Engine Ion Engine Power Core Light Nuclear Core Propulsion Aluminum Leg Treads Light Treads Leg Aluminum Leg Utility Power Shielding Device Improved Heat Sink Storage Large Storage Unit Processor Signal Interpreter Protection Power Shielding Weapon Light Assault Rifle Energy Gun Field Laser Ballistic Gun Light Assault Rifle Special Weapon Plasma Cutter Build | -11 -10 -9 -8 -7 ------- Run | Jun Mat Mat Mat Fac Slots Evolved 7 | . 1 2 2 2 Power 1 | . . 1 . . Propulsion 3 | . 1 . . 2 Utility 1 | . . 1 . . Weapon 2 | . . . 2 . Parts Attached 34 | 8 1 3 7 15 Power 9 | 2 . 1 2 4 Engine 6 | 2 . 1 . 3 Core 3 | . . . 2 1 Reactor . | . . . . . Propulsion 11 | 2 1 . 3 5 Treads 2 | . . . . 2 Leg 9 | 2 1 . 3 3 Wheel . | . . . . . Hover . | . . . . . Flight . | . . . . . Utility 7 | 2 . 2 . 3 Device 3 | . . . . 3 Storage 2 | 1 . 1 . . Processor 1 | . . 1 . . Hackware . | . . . . . Protection 1 | 1 . . . . Artifact . | . . . . . Weapon 7 | 2 . . 2 3 Energy Gun 3 | . . . 2 1 Energy Cannon . | . . . . . Ballistic Gun 2 | 2 . . . . Ballistic Cannon . | . . . . . Launcher . | . . . . . Special Weapon 2 | . . . . 2 Impact Weapon . | . . . . . Slashing Weapon . | . . . . . Piercing Weapon . | . . . . . Special Melee Weapon . | . . . . . Unidentified Prototypes . | . . . . . Parts Lost 19 | . . . 1 18 Power 4 | . . . . 4 Propulsion 6 | . . . . 6 Utility 2 | . . . . 2 Weapon 7 | . . . 1 6 Highest Loss Streak 13 | . . . 1 13 To Critical Strikes . | . . . . . Average Slot Usage (%) 91 | . 95 94 89 84 Engine 11 | . 12 16 5 4 Core 3 | . . . 10 7 Leg 28 | . 33 30 24 28 Device 2 | . . . . 9 Storage 9 | . 12 10 8 7 Processor 5 | . . 7 8 2 Protection 7 | . 12 10 8 1 Energy Gun 4 | . . . 10 12 Ballistic Gun 14 | . 25 20 12 1 Special Weapon 2 | . . . . 9 Naked Turns . | . . . . . Heaviest Build 41 | 18 18 33 39 41 Greatest Support 55 | 20 30 30 40 55 Greatest Overweight (x) 5 | 5 . 1 2 3 Average Overweight (x) . | . . . . . Largest Inventory Capacity 15 | 10 10 15 15 15 Average Capacity 12 | 9 10 11 15 15 Most Carried 11 | 5 6 9 11 9 Average Carried 6 | 3 5 5 9 7 Final Capacity 15 | 10 10 15 15 15 Final Carried 10 | 5 5 9 10 4 Class Distribution -------------------- 78% | Hacker-Mutant 13% | Scavenger-Gunner 6% | Hacker-Tank Dominant Class ---------------- Hacker-Mutant | -10/Materials Hacker-Mutant | -9/Materials Hacker-Mutant | -8/Materials Scavenger-Gunner | -7/Factory Resources | -11 -10 -9 -8 -7 ----------- Run | Jun Mat Mat Mat Fac Matter Collected 627 | 111 101 224 111 80 Remotely . | . . . . . Salvage Created 928 | . 77 523 208 120 Parts 60 | . 3 46 5 6 Haulers Intercepted . | . . . . . Recyclers Shooed . | . . . . . Parts Field Recycled . | . . . . . Retrieved Matter . | . . . . . Parts Self-Destructed . | . . . . . Prevented . | . . . . . Kills | -11 -10 -9 -8 -7 ------- Run | Jun Mat Mat Mat Fac Combat Hostiles Destroyed 23 | . . 17 4 2 Guns 21 | . . 17 4 . Cannons 2 | . . . . 2 Classes Destroyed 5 | . 1 3 1 . Watcher 6 | . 3 3 . . Swarmer 8 | . . 8 . . Grunt 11 | . . 7 2 2 Sentry 3 | . . 2 1 . Hunter 1 | . . . 1 . Best Kill Streak 7 | . 2 7 2 1 Combat Bots Only 7 | . . 7 2 1 Max Kills in Single Turn 1 | . 1 1 1 1 Gunslinging . | . . . . . Exploded . | . . . . . Melee . | . . . . . Uniques/NPCs Destroyed . | . . . . . Combat | -11 -10 -9 -8 -7 -------- Run | Jun Mat Mat Mat Fac Damage Taken 2046 | . 8 493 362 1183 Core 309 | . . 81 31 197 Absorbed by Shields . | . . . . . Redirected to Shielding 50 | . . 17 26 7 Core Remaining (%) 93 | 100 100 79 94 . Volleys Fired 121 | . 10 64 19 28 Largest 4 | . 2 2 4 4 Hottest 168 | . 40 40 166 168 Shots Fired 240 | . 20 128 35 57 Gun 222 | . 20 128 35 39 Cannon . | . . . . . Launcher . | . . . . . Special 18 | . . . . 18 Kinetic 169 | . 20 128 16 5 Thermal 71 | . . . 19 52 Explosive . | . . . . . Electromagnetic . | . . . . . Robot Hit Streak 29 | . 4 27 29 12 Robot Miss Streak 2 | . 2 2 1 2 Penetration Max . | . . . . . Secondary Targets 2 | . . 2 . . Max Gunslinging Chain 1 | . . 1 . . Shots Hit Robots 197 | . 13 109 31 44 Core Hits 72 | . 6 42 13 11 Critical Kills . | . . . . . Critical Parts Destroyed 2 | . 1 1 . . Critical Strikes 7 | . 1 1 2 3 Burn 4 | . . . 2 2 Destroy 2 | . 1 1 . . Sever 1 | . . . . 1 Melee Attacks . | . . . . . Impact . | . . . . . Slashing . | . . . . . Piercing . | . . . . . Sneak Attacks . | . . . . . Combat Hostiles . | . . . . . Follow-up Attacks . | . . . . . Damage Inflicted 1847 | . 109 793 428 517 Guns 1705 | . 109 789 428 379 Cannons . | . . . . . Explosions . | . . . . . Melee . | . . . . . Ramming 4 | . . 4 . . Kinetic 1016 | . 109 789 104 14 Thermal 827 | . . . 324 503 Explosive . | . . . . . Electromagnetic . | . . . . . Impact . | . . . . . Slashing . | . . . . . Piercing . | . . . . . Highest Corruption 6 | . . . 1 6 Average Corruption 1 | . . . 1 2 Corruption Purged . | . . . . . Corruption Blocked . | . . . . . Overload Shots . | . . . . . Overflow Damage 1 | . . . . 1 Projectiles 1 | . . . . 1 Explosions . | . . . . . Melee . | . . . . . Knockbacks . | . . . . . Impact . | . . . . . Kinetic . | . . . . . Secondary . | . . . . . Self-Inflicted Damage . | . . . . . Shots . | . . . . . Rammed . | . . . . . Targets Rammed 1 | . . 1 . . Kicked 1 | . . 1 . . Crushed . | . . . . . Highest Temperature 534 | . . 35 534 285 Average Temperature 124 | . . 7 292 136 Received Heat Transfer 1224 | . 9 249 207 759 Effects 13 | . . . 13 . Shutdowns 4 | . . . 4 . Energy Bleed 1 | . . . 1 . Interference 8 | . . . 8 . Siege Activations . | . . . . . Robots Corrupted . | . . . . . Combat Hostiles . | . . . . . Parts Fried . | . . . . . Impact Corruptions . | . . . . . Robots Melted . | . . . . . Combat Hostiles . | . . . . . Parts Melted 4 | . . . 2 2 Heat Transferred 2220 | . . . 851 1369 Parts Sabotaged . | . . . . . Parts Stolen . | . . . . . Parts Stripped . | . . . . . Power Chain Reactions . | . . . . . Missiles Intercepted . | . . . . . Alert | -11 -10 -9 -8 -7 ------- Run | Jun Mat Mat Mat Fac Peak Influence 309 | . 51 309 183 70 Initial 60 | . . 15 23 60 Average 63 | . 21 81 79 44 Maximum Alert Level 1 | . . 1 . . Low Security (%) 93 | 100 100 86 100 100 Level 1 6 | . . 13 . . Level 2 . | . . . . . Level 3 . | . . . . . Level 4 . | . . . . . Level 5 . | . . . . . High Security . | . . . . . Max Security . | . . . . . Squads Dispatched 6 | . . 2 2 2 Investigation 1 | . . 1 . . Extermination 1 | . . . . 1 Reinforcement 4 | . . 1 2 1 Assault . | . . . . . Garrison . | . . . . . Intercept . | . . . . . Searches Triggered . | . . . . . Construction Impeded 1 | . . . 1 . Haulers Reinforced . | . . . . . Active Scanning Responses . | . . . . . Cargo Convoy Interrupts . | . . . . . Stealth | -11 -10 -9 -8 -7 --------- Run | Jun Mat Mat Mat Fac Distress Signals 3 | . . 2 . 1 Communications Jammed . | . . . . . Distress Signals . | . . . . . Times Spotted 55 | . 6 29 8 12 Peak Tracking Total 7 | . 2 4 4 7 Tactical Retreats 3 | . 1 1 1 . Traps | -11 -10 -9 -8 -7 ------- Run | Jun Mat Mat Mat Fac Traps Triggered 1 | . . . 1 . Indirectly . | . . . . . Trap Hack Attempts . | . . . . . Triggered . | . . . . . Disarmed . | . . . . . Reprogrammed . | . . . . . Reused . | . . . . . Traps Extracted . | . . . . . Installed . | . . . . . Triggered . | . . . . . Machines | -11 -10 -9 -8 -7 ---------- Run | Jun Mat Mat Mat Fac Machines Disabled . | . . . . . Max in Single Turn . | . . . . . Machines Repaired . | . . . . . Machines Sabotaged . | . . . . . Overloaded Fab Kills . | . . . . . Hacking | -11 -10 -9 -8 -7 --------- Run | Jun Mat Mat Mat Fac Machines Accessed 1 | . . 1 . . Terminals 1 | . . 1 . . Fabricators . | . . . . . Repair Stations . | . . . . . Recycling Units . | . . . . . Scanalyzers . | . . . . . Garrison Access . | . . . . . Total Hacks 3 | . . 3 . . Successful 1 | . . 1 . . Failed 2 | . . 2 . . Catastrophic . | . . . . . Database Lockouts . | . . . . . Manual . | . . . . . Terminals 3 | . . 3 . . Fabricators . | . . . . . Repair Stations . | . . . . . Recycling Units . | . . . . . Scanalyzers . | . . . . . Garrison Access . | . . . . . Terminal Hacks 1 | . . 1 . . Alert Level 1 | . . 1 . . Fabricator Hacks . | . . . . . Repair Station Hacks . | . . . . . Recycling Unit Hacks . | . . . . . Scanalyzer . | . . . . . Garrison Access Hacks . | . . . . . Unauthorized Hacks . | . . . . . Terminals . | . . . . . Fabricators . | . . . . . Repair Stations . | . . . . . Recycling Units . | . . . . . Scanalyzers . | . . . . . Garrison Access . | . . . . . Data Cores Recovered . | . . . . . Used . | . . . . . Hacking Detections 1 | . . 1 . . Full Trace Events 1 | . . 1 . . Feedback Events . | . . . . . Feedback Blocked . | . . . . . Robot Schematics Acquired . | . . . . . Robots Built . | . . . . . Authchips . | . . . . . Time . | . . . . . Total Robot Build Rating . | . . . . . Part Schematics Acquired . | . . . . . Parts Built . | . . . . . Authchips . | . . . . . Time . | . . . . . Total Part Build Rating . | . . . . . Parts Repaired . | . . . . . Time . | . . . . . Parts Recycled . | . . . . . Recycled Matter . | . . . . . Retrieved Matter . | . . . . . Retrieved Components . | . . . . . Parts Scanalyzed . | . . . . . Part Schematics Acquired . | . . . . . Parts Damaged . | . . . . . Bothacking | -11 -10 -9 -8 -7 ------------ Run | Jun Mat Mat Mat Fac Used RIF Installer . | . . . . . Robots Hacked . | . . . . . Non-combat . | . . . . . Combat . | . . . . . Robot Hacks Applied . | . . . . . Relay Couplers Released . | . . . . . Fabnet Peak Effective % . | . . . . . Robots Rewired . | . . . . . Allies Hacked . | . . . . . Hacks Repelled . | . . . . . Allies | -11 -10 -9 -8 -7 -------- Run | Jun Mat Mat Mat Fac Total Allies . | . . . . . Largest Group . | . . . . . Highest-Rated Group . | . . . . . Highest-Rated Ally . | . . . . . Total Orders . | . . . . . Ally Attacks . | . . . . . Total Damage . | . . . . . Kills . | . . . . . Allies Corrupted . | . . . . . Allies Melted . | . . . . . Intel | -11 -10 -9 -8 -7 ------- Run | Jun Mat Mat Mat Fac Robot Analysis Total . | . . . . . Derelict Logs Recovered . | . . . . . Drone Launches . | . . . . . Drone Recoveries . | . . . . . Exploration | -11 -10 -9 -8 -7 ------------- Run | Jun Mat Mat Mat Fac Turns Passed 2019 | 90 184 989 304 452 Spaces Moved 913 | 52 130 336 138 257 Core 12 | 12 . . . . Treads 9 | . . . . 9 Legs 892 | 40 130 336 138 248 Wheels . | . . . . . Hover . | . . . . . Flight . | . . . . . Fastest Speed 50 | 50 120 120 120 120 Average Speed 135 | 119 120 146 141 126 Slowest Speed 330 | 300 120 190 260 330 Overloaded Moves . | . . . . . Propulsion Burnouts . | . . . . . Robots Hopped . | . . . . . Cave-ins Triggered . | . . . . . Exploration Rate (%) 20 | 5 30 41 14 10 Regions Visited 4 Branch Regions . Pre-discovered Areas . | . . . . . Known Exits Taken 4 | 1 1 1 1 . Unknown Exits Taken . | . . . . . Scrap Searched . | . . . . . Spaces Dug . | . . . . . Terrain Destroyed . | . . . . . Melee . | . . . . . Projectile . | . . . . . AOE . | . . . . . Terrain Rammed . | . . . . . Walls Destroyed . | . . . . . Machines Disabled . | . . . . . Actions | -11 -10 -9 -8 -7 --------- Run | Jun Mat Mat Mat Fac Total 1483 | 79 142 730 219 313 Wait 377 | 8 1 316 47 5 Move 909 | 51 129 335 137 257 Hop . | . . . . . Pick Up 35 | 12 1 9 6 7 Fast Attach . | . . . . . Attach 29 | 7 1 3 5 13 Detach . | . . . . . Swap 5 | 1 . . 2 2 Drop 6 | . . 2 3 1 Fire 121 | . 10 64 19 28 Melee . | . . . . . Ram . | . . . . . Kick 1 | . . 1 . . Crush . | . . . . . Escape Stasis . | . . . . . Rewire . | . . . . . Trap . | . . . . . Miscellaneous . | . . . . . Route ------- -11/Junkyard -10/Materials -9/Materials (discovered 2 exits: *Mat / *Min) -8/Materials -7/Factory History --------- Turn | Location | Event 29 | -11/Junkyard | Identified exit to Materials 29 | -11/Junkyard | Discovered exit to Materials (range 16) 91 | -11/Junkyard | Entered Materials 91 | -10/Materials | Evolved 1 slot: Propulsion x1 257 | -10/Materials | Identified exit to Materials 257 | -10/Materials | Discovered exit to Materials (range 16) 275 | -10/Materials | Entered another Materials area 275 | -9/Materials | Evolved 2 slots: Power x1, Utility x1 312 | -9/Materials | Build established: Hacker-Mutant 969 | -9/Materials | Destroyed 7 combat bots 982 | -9/Materials | Identified exit to Mines 982 | -9/Materials | Discovered exit to Mines (range 10) 1250 | -9/Materials | Identified exit to Materials 1250 | -9/Materials | Discovered exit to Materials (range 8) 1264 | -9/Materials | Entered another Materials area 1264 | -8/Materials | Evolved 2 slots: Weapon x2 1559 | -8/Materials | Identified exit to Factory 1559 | -8/Materials | Discovered exit to Factory (range 8) 1568 | -8/Materials | Entered Factory 1568 | -7/Factory | Evolved 2 slots: Propulsion x2 1678 | -7/Factory | Lost 3 parts (1n2w) 2020 | -7/Factory | Self-destructed Last Messages --------------- 01993_ System corrupted by crushing effect (+1). 01993_ Knocked back. 01994_ Field Laser destroyed. 01994_ P-60 Hacker suffers critical hit (Burn). 01996_ Y-54 Guardian heat damages Gatling Laser. 01997_ Y-54 Guardian heat damages Flak Gun. 01998_ Y-54 Guardian heat damages core (-14). 01999_ Y-54 Guardian heat short circuits Lgt. Treads. 02000_ Particle Gun destroyed. 02000_ System corrupted by crushing effect (+3). 02001_ Y-54 Guardian heat short circuits Gatling Laser. 02002_ Y-54 Guardian heat short circuits Lgt. Treads. 02003_ Y-54 Guardian heat damages core (-14). 02003_ Imp. Cooling System destroyed. 02003_ System corrupted by crushing effect (+1). 02005_ Critical hit (Burn: +37). 02006_ Y-54 Guardian heat damages Imp. Light Armor Plating, Flak Gun. 02010_ P-60 Hacker heat short circuits Gravmag System. 02012_ P-60 Hacker resets A-02 Transporter, system corruption cleaned. 02017_ Lgt. Ion Engine destroyed. Map ----- +----------------------------------------------------+ | ?????????????????????????????????????????????????? | | ?????????????????????????????????????????????????? | | ?????????????????????????????????????????????????? | | ?????????????????????????????????????????????????? | | ?????????????????????????????????????????????????? | | ?????????????????????????????????????????????????? | | ?????????????????????????????????????????????????? | | ?????????????????????????????????????????????????? | | ?????????????????????????????????????????????????? | | ?????????????????????????????????????????????????? | | ?????????????????????????????????????????????????? | | ?????????????????????????????????????????????????? | | ?????????????????????????? ????????????????? | | ?????????????????????????? #???????????????? | | ??????????############+### #???????????????? | | ?????????? ####????????????? | | ?????????? !k ???????????? | | ??????????? ^ ????????????? | | ???????????? /!! """ !! ""????????????? | | ?????????????? /! """r !! ""????????????? | | ???????????????# /! """ ! """???????????? | | ???????????????# u ???????????? | | ???????????????# gg ??????????????? | | ???????????????# #?????????????????? | | ???????????????# g ap #?????????????????? | | ???????????????# a g b @ #?????????????????? | | ???????????????# """"" """"" #?????????????????? | | ???????????????# """"" """" #?????????????????? | | ???????????????# """ """ #?????????????????? | | ???????????????# !#?????????????????? | | ???????????????# #?????????????????? | | ???????????????# %##?????????????????? | | ???????????????# #??????????????????? | | ################ ######## #??????????????????? | | ########/####???????????????? | | + #???????????????? | | "" # """"""""" #???????????????? | | "" "" "" ""^ """ # #???????????????? | | "" "" "" "" F" ## [![ #???????????????? | | "" """ """ """ """ ## [[[ #???????????????? | | """ """ """ "" ## [[[ = #???????????????? | | """ """ """ ## #???????????????? | | ## """"""""" #???????????????? | | + #???????????????? | | ################+########## ###???????????????? | | +###??????????????????????????##?????????????????? | | ?????????????????????????????????????????????????? | | ?????????????????????????????????????????????????? | | ?????????????????????????????????????????????????? | | ?????????????????????????????????????????????????? | +----------------------------------------------------+ Best States ------------- Heat Dissipation 75 Energy Generation 23 Energy Capacity 400 Matter Stores 300 Matter Capacity 300 Sight Range 16 Terrain Scan Density 10 Resistance: KI 35 Resistance: TH 35 Resistance: EX 35 Resistance: EM 35 Resistance: I 35 Resistance: S 35 Resistance: P 35 Power Shielding 33 Evasion (%) 55 Recoil Reduction 2 Offensive Hacking 20 Item Schematics ----------------- None Robot Schematics ------------------ None Fabricated ------------ Nothing Alien Tech Used ----------------- None Achievements -------------- None Challenges ------------ None Game ------ Seed QuantumSapperGreatsword Manual? 0 Play Time 00:37:58 Cumulative 7.2 hours Start 2023.08.13 @ 01:48:24 End 2023.08.13 @ 02:39:31 Sessions 1 Manual Loads 0 Difficulty Explorer Special Mode None Game No. 12 Rogue 7 Adventurer 0 Explorer 5 Win Type - Total 0 Types 0/0/0/0/0/0/0/0/0 Lore% 2 Gallery% 15 Achievement% 12 Wizard Run 0 Options --------- ASCII 0 Keyboard 0 Movement Mouse Keybinds 0 Fullscreen 2 Font 20/Cog Map View 76x50 Tactical HUD 1 Map Filters NONE Filters NONE Steam 1 RUN: 6d0b9e99-384a-470a-82ef-1cbaac2f80f2